bitfinex-derivatives/quotes_SOLF0:USTF0_20251023
["timestamp","ask_amount","ask_price","bid_price","bid_amount"]
[1761235210830,7.4171872,191.13,191.05,2.72]
[1761235211040,4.6371872,191.12,191.05,2.72]
[1761235211540,4.6371872,191.12,191.04,2.72]
[1761235211736,4.6371872,191.14,191.04,2.72]
[1761235212936,4.6371872,191.14,191.08,4.7089]
[1761235213141,4.6371872,191.14,191.09,2.72]
[1761235213334,7.4171872,191.14,191.09,2.72]
[1761235214036,2.78,191.13,191.08,4.7089]
[1761235214238,2.78,191.13,191.09,2.72]
[1761235214440,4.6371872,191.14,191.09,2.72]
[1761235214646,7.4171872,191.16,191.1,2.72]
[1761235214847,7.4171872,191.15,191.1,2.72]
[1761235215042,4.6371872,191.14,191.1,2.72]
[1761235215635,2.78,191.15,191.1,2.72]
[1761235216334,9.3444872,191.16,191.1,2.72]
[1761235216536,4.6371872,191.15,191.1,2.72]
[1761235216742,7.4171872,191.17,191.11,4.7916801]
[1761235216940,2.78,191.16,191.12,7.5116801]
[1761235217141,2.78,191.15,191.13,4.7916801]
[1761235217343,2.78,191.15,191.14,4.7916801]
[1761235220646,7.4171872,191.15,191.14,4.7916801]
[1761235220843,7.42203604,191.15,191.14,4.7916801]
[1761235221246,2.78,191.15,191.14,4.7916801]
[1761235221447,7.42203604,191.17,191.14,4.7916801]
[1761235221742,7.42203604,191.17,191.15,4.7916801]
[1761235221944,7.42203604,191.17,191.16,4.7916801]
[1761235226049,7.28597686,191.17,191.16,4.7916801]
[1761235226252,2.78,191.17,191.16,4.7916801]
[1761235226741,7.28590109,191.17,191.16,4.7916801]
[1761235229638,4.50590109,191.17,191.16,4.7916801]
[1761235231253,7.35590109,191.17,191.16,4.7916801]
[1761235232351,4.8642303,191.18,191.17,2.73]
[1761235232546,4.8642303,191.18,191.17,7.5216801]
[1761235233947,4.8642303,191.18,191.17,4.7916801]
[1761235234246,7.7142303,191.18,191.17,4.7916801]
[1761235234947,12.22257881,191.18,191.17,4.7916801]
[1761235235348,12.22291733,191.18,191.17,4.7916801]
[1761235239656,2.85,191.16,191.09,2.73]
[1761235240052,7.35868703,191.16,191.09,2.73]
[1761235240948,7.35868703,191.16,191.1,4.7085]
[1761235241148,7.35868703,191.16,191.1,7.4385]
[1761235241756,7.35868703,191.16,191.11,7.4381]
[1761235242056,2.85,191.16,191.11,7.4381]
[1761235242254,2.85,191.16,191.12,2.73]
[1761235244048,4.50868703,191.17,191.12,2.73]
[1761235244254,4.8642303,191.18,191.12,2.73]
[1761235244255,9.37291733,191.18,191.13,2.73]
[1761235244758,2.85,191.17,191.13,2.73]
[1761235244959,4.50868703,191.17,191.13,4.7077]
[1761235245256,9.37291733,191.18,191.14,2.73]
[1761235245457,4.8642303,191.18,191.14,2.73]
[1761235245848,4.8642303,191.18,191.16,2.73]
[1761235247160,4.8642303,191.18,191.17,2.73]
[1761235250865,4.8642303,191.18,191.13,7.61647126]
[1761235250866,2.85,191.17,191.14,4.7076]
[1761235251252,7.7142303,191.18,191.15,2.73]
[1761235251662,7.7142303,191.18,191.16,4.82353155]
[1761235251880,7.7142303,191.18,191.17,4.82353155]
[1761235252867,2.85,191.17,191.11,7.4382]
[1761235253065,7.360121,191.17,191.13,2.73]
[1761235253462,4.510121,191.17,191.13,2.73]
[1761235253764,7.72753247,191.25,191.18,2.73]
[1761235253958,2.85,191.25,191.21,2.73745152]
[1761235254156,43.92,191.33,191.22,2.73]
[1761235254361,2.85,191.32,191.22,2.73]
[1761235254558,2.85,191.32,191.21,2.73745152]
[1761235255060,2.85,191.32,191.21,7.62162411]
[1761235255265,2.85,191.27,191.2,4.88417259]
[1761235255661,2.85,191.27,191.19,4.88417259]
[1761235256067,2.85,191.33,191.22,4.88417259]
[1761235256668,2.85,191.33,191.23,4.88417259]
[1761235256669,4.7036,191.31,191.23,4.88417259]
[1761235256968,2.85,191.3,191.23,4.88417259]
[1761235257161,2.85,191.3,191.22,4.88417259]
[1761235257362,2.85,191.3,191.22,7.61417259]
[1761235258769,4.7039,191.29,191.22,4.88417259]
[1761235258971,2.77,191.28,191.21,4.88417259]
[1761235259269,2.77,191.28,191.19,7.67417259]
[1761235259960,2.77,191.26,191.19,7.67417259]
[1761235261467,2.77,191.26,191.19,4.88417259]
[1761235261672,2.77,191.26,191.17,4.88417259]
[1761235262369,4.7053,191.24,191.17,4.88417259]
[1761235262581,2.77,191.23,191.19,2.79]
[1761235262761,2.77,191.34,191.21,2.79]
[1761235262965,2.73745152,191.32,191.22,2.79]
[1761235263268,2.77,191.31,191.22,2.79]
[1761235263969,2.77,191.3,191.22,2.79]
[1761235264277,2.77,191.3,191.23,7.67417259]
[1761235264571,2.77,191.28,191.22,4.88417259]
[1761235264772,2.77,191.27,191.23,4.95769025]
[1761235264973,2.77,191.27,191.17,4.88417259]
[1761235265176,2.77,191.24,191.18,4.95834258]
[1761235265474,2.77,191.23,191.19,4.95834258]
[1761235265676,2.77,191.21,191.2,4.95834258]
[1761235266672,8.516,191.21,191.2,4.95834258]
[1761235266872,8.516,191.21,191.2,0.07543722]
[1761235267062,2.77,191.17,191.13,4.88417259]
[1761235267468,2.77,191.17,191.11,4.88417259]
[1761235267677,2.77,191.17,191.09,2.79]
[1761235267678,2.77,191.17,191.1,4.88417259]
[1761235267977,4.7074,191.15,191.1,4.88417259]
[1761235268177,4.7074,191.15,191.1,7.67417259]
[1761235268378,2.77,191.17,191.1,7.67417259]
[1761235268573,4.7073,191.16,191.1,7.67417259]
[1761235269077,2.77,191.17,191.1,7.67417259]
[1761235269275,2.77,191.22,191.14,7.67417259]
[1761235270076,2.77,191.22,191.14,2.79]
[1761235270673,2.77,191.2,191.14,2.79]
[1761235271979,2.73745152,191.24,191.14,2.79]
[1761235272172,2.77,191.23,191.14,7.67417259]
[1761235272567,2.77,191.23,191.13,9.59187259]
[1761235273079,2.77,191.22,191.13,9.59187259]
[1761235273375,2.73745152,191.21,191.13,4.88417259]
[1761235273581,2.77,191.2,191.13,4.88417259]
[1761235274479,2.77,191.2,191.14,2.79]
[1761235278079,4.706,191.21,191.14,2.79]
[1761235278677,2.77,191.21,191.14,2.79]
[1761235279086,2.77,191.21,191.15,4.71286974]
[1761235279285,2.77,191.21,191.16,4.71286974]
[1761235279478,2.77,191.21,191.17,4.71286974]
[1761235279678,2.77,191.21,191.18,4.71286974]
[1761235279987,2.77,191.18,191.12,4.88417259]
[1761235280291,2.77,191.18,191.09,9.3023296]
[1761235280292,2.77,191.18,191.13,4.71019858]
[1761235280592,7.4767,191.18,191.14,4.71019858]
[1761235280782,2.77,191.17,191.15,4.71019858]
[1761235280987,2.77,191.17,191.1,4.88417259]
[1761235281176,2.77,191.17,191.11,4.70793313]
[1761235281484,2.77,191.17,191.12,4.70793313]
[1761235281684,2.77,191.17,191.13,4.70793313]
[1761235281987,2.77,191.16,191.14,4.70793313]
[1761235282175,2.77,191.16,191.09,12.38287259]
[1761235282890,7.4772,191.16,191.09,12.38287259]
[1761235283388,2.73745152,191.17,191.07,4.88417259]
[1761235283389,4.708,191.13,191.07,4.88417259]
[1761235283576,2.73745152,191.2,191.06,4.88417259]
[1761235283577,2.77,191.12,191.06,4.88417259]
[1761235283783,5.50745152,191.11,191.05,4.88417259]
[1761235284185,2.77,191.1,191.06,4.88417259]
[1761235284489,7.44535152,191.13,191.05,4.88417259]
[1761235284687,7.44535152,191.13,191.05,7.67417259]
[1761235284890,10.21535152,191.13,191.06,8.87989518]
[1761235285090,10.21535152,191.13,191.07,3.99572259]
[1761235285385,7.4774,191.15,191.08,3.99572259]
[1761235285589,7.4774,191.15,191.09,3.99572259]
[1761235285793,2.77,191.14,191.1,3.99572259]
[1761235286090,2.77,191.14,191.11,3.99572259]
[1761235286290,2.77,191.14,191.07,2.79]
[1761235286291,7.4777,191.14,191.07,2.79]
[1761235286488,7.4777,191.14,191.08,3.99380234]
[1761235286693,2.78,191.13,191.09,3.99380234]
[1761235286893,2.78,191.13,191.1,3.99380234]
[1761235287187,2.78,191.13,191.06,4.7094]
[1761235287383,2.78,191.13,191.07,3.99234963]
[1761235287583,2.78,191.13,191.08,3.99234963]
[1761235287791,2.78,191.13,191.09,3.99234963]
[1761235287991,4.708,191.13,191.1,3.99234963]
[1761235288195,2.78,191.12,191.06,4.7094]
[1761235288392,2.78,191.12,191.07,3.98974781]
[1761235288593,2.78,191.12,191.08,3.98974781]
[1761235288790,2.78,191.12,191.09,3.98974781]
[1761235288992,2.78,191.12,191.1,3.98974781]
[1761235289192,2.78,191.12,191.07,2.62]
[1761235289394,2.78,191.12,191.08,3.99251517]
[1761235289593,2.78,191.12,191.09,3.99251517]
[1761235289794,2.78,191.12,191.1,3.99251517]
[1761235289988,4.708,191.13,191.11,3.99266676]
[1761235290190,4.708,191.13,191.08,2.7]
[1761235290496,7.428,191.13,191.09,3.99287364]
[1761235290697,4.7073,191.16,191.1,6.69287364]
[1761235290991,2.72,191.15,191.11,6.69287364]
[1761235291288,2.72,191.15,191.09,1.75287544]
[1761235291289,4.7077,191.14,191.09,1.75287544]
[1761235291592,2.72,191.13,191.1,3.98924179]
[1761235291792,2.72,191.13,191.09,4.45287544]
[1761235292089,2.72,191.13,191.1,3.98914245]
[1761235292299,2.72,191.13,191.09,2.7]
[1761235292592,2.72,191.13,191.1,3.98838845]
[1761235292792,4.7072,191.16,191.11,5.74042469]
[1761235293091,7.4272,191.16,191.12,6.68754925]
[1761235293291,7.4272,191.16,191.12,2.7]
[1761235293483,4.7072,191.16,191.09,4.45287544]
[1761235293687,4.7072,191.16,191.1,3.98846253]
[1761235293887,2.72,191.15,191.11,3.98846253]
[1761235294090,7.4275,191.15,191.09,4.45287544]
[1761235294293,2.72,191.14,191.1,3.98785102]
[1761235294587,2.72,191.14,191.11,3.98785102]
[1761235294790,2.72,191.14,191.1,2.7]
[1761235294990,2.72,191.14,191.11,3.98782502]
[1761235295191,2.72,191.14,191.1,2.7]
[1761235295396,2.72,191.14,191.11,3.98848805]
[1761235295596,2.72,191.14,191.1,2.7]
[1761235295801,2.72,191.14,191.11,3.98822448]
[1761235295986,2.72,191.14,191.08,4.709]
[1761235296191,2.72,191.14,191.09,3.98782276]
[1761235296387,2.72,191.14,191.1,3.98782276]
[1761235296590,2.72,191.14,191.08,6.46187544]
[1761235296794,2.72,191.14,191.09,3.98713007]
[1761235296989,2.72,191.14,191.1,3.98713007]
[1761235297194,7.4277,191.14,191.08,6.46187544]
[1761235297400,4.7077,191.14,191.09,3.98631065]
[1761235297699,2.72,191.13,191.1,3.98631065]
[1761235297899,2.72,191.13,191.09,2.7]
[1761235298201,9.18007544,191.16,191.1,6.68706191]
[1761235298399,2.72,191.21,191.12,2.7]
[1761235298593,4.7065,191.19,191.13,11.39467539]
[1761235298792,2.72,191.19,191.13,2.7]
[1761235299996,4.7067,191.18,191.13,2.7]
[1761235300202,7.4267,191.18,191.13,2.7]
[1761235301006,2.72,191.17,191.13,2.7]
[1761235302202,2.72,191.17,191.14,3.99158175]
[1761235302504,2.72,191.17,191.13,2.7]
[1761235302704,2.72,191.17,191.14,3.99188046]
[1761235302906,2.72,191.17,191.13,2.7]
[1761235303104,4.7063,191.2,191.14,3.99127591]
[1761235303303,4.7063,191.2,191.12,1.75287544]
[1761235303304,2.72,191.2,191.12,1.75287544]
[1761235303509,9.17737544,191.27,191.2,2.7]
[1761235303711,2.72,191.3,191.22,2.7]
[1761235303903,2.72,191.3,191.24,4.45287544]
[1761235304102,2.72,191.3,191.26,2.7]
[1761235304606,2.72,191.3,191.27,3.98451247]
[1761235304808,2.72,191.3,191.26,2.7]
[1761235305007,2.72,191.3,191.27,3.98433823]
[1761235305202,2.72,191.3,191.26,2.7]
[1761235306408,2.72,191.3,191.22,4.45287544]
[1761235306607,2.72,191.3,191.23,3.98058352]
[1761235306906,2.72,191.26,191.18,9.59077259]
[1761235307208,2.72,191.26,191.19,6.68129274]
[1761235307412,2.72,191.26,191.2,6.68129274]
[1761235307605,2.72,191.26,191.21,6.68129274]
[1761235307804,2.72,191.26,191.22,6.68129274]
[1761235308007,6.45687544,191.29,191.23,3.98129274]
[1761235308206,2.72,191.28,191.24,3.98129274]
[1761235308404,2.72,191.28,191.22,2.7]
[1761235308713,2.72,191.28,191.23,6.67770861]
[1761235308911,2.72,191.28,191.24,3.97792051]
[1761235309205,1.75287544,191.27,191.23,2.7]
[1761235309411,1.75287544,191.27,191.24,3.97832945]
[1761235309412,4.47287544,191.27,191.24,3.97832945]
[1761235309614,4.47287544,191.27,191.19,12.24354754]
[1761235309813,4.7037,191.3,191.21,2.7]
[1761235310007,1.75287544,191.28,191.23,2.7]
[1761235310312,4.47287544,191.28,191.24,3.97847845]
[1761235310515,4.47287544,191.28,191.23,2.7]
[1761235310705,4.47287544,191.28,191.24,3.97613142]
[1761235311013,4.47287544,191.28,191.23,2.7]
[1761235311215,4.47287544,191.28,191.24,6.67602652]
[1761235311409,1.75287544,191.28,191.24,2.7]
[1761235312112,1.75287544,191.28,191.25,3.9740577]
[1761235312302,1.75287544,191.3,191.24,2.7]
[1761235313015,7.4232,191.32,191.24,4.705]
[1761235313212,9.17607544,191.32,191.26,2.7]
[1761235313414,2.72,191.31,191.26,2.7]
[1761235313609,1.75287544,191.3,191.26,2.7]
[1761235313810,2.72,191.29,191.22,12.24284754]
[1761235314112,2.72,191.27,191.23,3.96811224]
[1761235314307,2.72,191.27,191.24,3.96811224]
[1761235314518,1.75287544,191.28,191.23,2.7]
[1761235314817,1.75287544,191.26,191.24,3.96765592]
[1761235315116,2.72,191.25,191.21,2.7]
[1761235315324,1.75287544,191.26,191.21,2.7]
[1761235316024,4.47287544,191.26,191.21,2.7]
[1761235318828,1.75287544,191.24,191.21,2.7]
[1761235319028,4.47287544,191.26,191.21,2.7]
[1761235320330,1.75287544,191.26,191.21,2.7]
[1761235320633,4.47287544,191.26,191.21,2.7]
[1761235321134,1.75287544,191.28,191.21,2.7]
[1761235322134,4.47287544,191.28,191.21,2.7]
[1761235322528,4.47287544,191.28,191.22,2.72]
[1761235322728,2.72,191.28,191.22,2.72]
[1761235323226,1.75287544,191.3,191.23,2.72]
[1761235323428,2.72,191.43,191.26,1.75287544]
[1761235323635,4.47287544,191.37,191.27,2.72]
[1761235323823,1.75287544,191.35,191.27,2.72]
[1761235325034,1.75287544,191.35,191.28,2.72]
[1761235325536,9.17527544,191.36,191.28,2.72]
[1761235326432,4.47287544,191.36,191.28,7.424]
[1761235326632,4.47287544,191.36,191.29,2.72]
[1761235327031,6.45477544,191.38,191.29,2.72]
[1761235327231,1.75287544,191.39,191.31,2.72]
[1761235327928,1.75287544,191.33,191.25,4.83734754]
[1761235328128,2.72,191.29,191.23,2.72]
[1761235328435,1.75287544,191.28,191.23,2.72]
[1761235328634,4.47287544,191.28,191.23,2.72]
[1761235329932,1.75287544,191.28,191.23,2.72]
[1761235330536,6.45667544,191.3,191.23,2.72]
[1761235330738,1.75287544,191.3,191.24,2.72]
[1761235332231,4.47287544,191.3,191.24,2.72]
[1761235335143,4.7029,191.34,191.24,2.72]
[1761235335440,1.75287544,191.35,191.27,2.72]
[1761235335638,1.75287544,191.37,191.29,2.72]
[1761235336039,1.75287544,191.35,191.29,2.72]
[1761235336245,4.47287544,191.35,191.29,2.72]
[1761235337735,1.75287544,191.36,191.3,2.72]
[1761235338040,9.17467544,191.38,191.3,2.72]
[1761235338242,4.47287544,191.38,191.32,2.72]
[1761235339352,1.75287544,191.38,191.33,2.72]
[1761235340948,1.75287544,191.4,191.33,2.72]
[1761235342152,4.47287544,191.4,191.33,2.72]
[1761235342456,1.75287544,191.38,191.33,2.72]
[1761235342652,4.47287544,191.38,191.33,2.72]
[1761235343351,2.72,191.37,191.33,2.72]
[1761235343952,2.72,191.37,191.3,7.4236]
[1761235344654,1.75287544,191.38,191.31,2.72]
[1761235345150,1.75287544,191.38,191.32,2.72]
[1761235345351,1.75287544,191.4,191.32,2.72]
[1761235345558,1.75287544,191.4,191.3,4.83734754]
[1761235345559,9.17377544,191.42,191.34,2.72]
[1761235346047,9.17377544,191.42,191.35,2.68]
[1761235346448,7.4209,191.42,191.35,2.68]
[1761235346646,7.4209,191.42,191.36,2.68]
[1761235346647,4.47287544,191.42,191.36,2.68]
[1761235347155,4.47287544,191.42,191.36,7.3821]
[1761235347355,2.72,191.42,191.36,7.3821]
[1761235349849,4.7003,191.44,191.38,2.6]
[1761235350360,10.14982149,191.46,191.38,2.6]
[1761235350544,10.14982149,191.46,191.35,2.6]
[1761235350751,4.7013,191.4,191.35,2.6]
[1761235350951,2.72,191.39,191.32,2.6]
[1761235352159,2.72,191.39,191.32,7.303]
[1761235352958,2.72992149,191.4,191.32,2.6]
[1761235353254,5.44992149,191.43,191.32,2.6]
[1761235353459,5.44992149,191.43,191.33,2.6]
[1761235353650,2.72,191.42,191.33,2.6]
[1761235354954,7.4208,191.42,191.34,7.3025]
[1761235355259,7.4208,191.42,191.35,2.6]
[1761235356163,7.4208,191.42,191.35,7.3023]
[1761235356362,2.72,191.42,191.36,2.6]
[1761235357561,2.72,191.42,191.36,7.302]
[1761235357759,4.7004,191.44,191.37,2.6]
[1761235358266,2.72,191.45,191.38,2.6]
[1761235358966,2.72,191.45,191.38,7.3016]
[1761235360675,2.72,191.44,191.38,2.6]
[1761235361570,2.72,191.43,191.38,2.6]
[1761235362372,7.4199,191.46,191.39,2.6]
[1761235362668,2.72,191.45,191.39,2.6]
[1761235362864,2.72,191.44,191.33,2.6]
[1761235363068,2.72992149,191.48,191.33,2.6]
[1761235363069,2.72,191.41,191.33,2.6]
[1761235363669,2.72,191.41,191.35,2.6]
[1761235365175,7.4204,191.44,191.32,2.6]
[1761235365670,7.4204,191.44,191.33,2.6]
[1761235365866,2.72,191.44,191.38,2.6]
[1761235366070,4.6999,191.46,191.38,2.6]
[1761235366267,7.4199,191.46,191.38,2.6]
[1761235366974,7.4199,191.46,191.38,7.3016]
[1761235367162,2.72,191.44,191.38,7.3016]
[1761235367367,2.72,191.44,191.34,2.6]
[1761235368168,2.72,191.41,191.34,2.6]
[1761235369963,7.4211,191.41,191.34,2.6]
[1761235370775,2.72,191.4,191.33,4.7028]
[1761235370973,2.72,191.38,191.33,4.7028]
[1761235371373,2.72,191.38,191.34,2.6]
[1761235371770,2.72,191.47,191.34,7.3026]
[1761235372072,5.44992149,191.41,191.34,7.3026]
[1761235372270,2.72,191.4,191.34,4.7026]
[1761235374174,7.4214,191.4,191.34,4.7026]
[1761235374973,2.72,191.39,191.32,7.3031]
[1761235375967,2.72,191.39,191.33,2.6]
[1761235377077,7.4215,191.39,191.33,2.6]
[1761235377269,2.72,191.38,191.33,2.6]
[1761235378071,4.7015,191.39,191.33,2.6]
[1761235378468,4.7015,191.39,191.33,7.3028]
[1761235378774,4.701,191.41,191.32,4.83734754]
[1761235378975,7.301,191.41,191.34,2.82]
[1761235379172,2.6,191.41,191.34,2.82]
[1761235379367,2.72992149,191.4,191.34,2.82]
[1761235379576,5.32992149,191.4,191.34,2.82]
[1761235379977,2.6,191.39,191.34,2.82]
[1761235380274,2.6,191.39,191.35,4.79717696]
[1761235380465,2.6,191.39,191.36,4.79717696]
[1761235380663,2.6,191.39,191.37,4.79717696]
[1761235380864,2.6,191.39,191.38,4.79717696]
[1761235382579,2.6,191.43,191.38,4.79717696]
[1761235382877,2.6,191.43,191.39,4.79717696]
[1761235383079,2.6,191.43,191.4,4.79717696]
[1761235383273,7.3007,191.42,191.41,4.79717696]
[1761235384466,2.72992149,191.44,191.41,4.79717696]
[1761235384467,10.03032149,191.44,191.41,4.79717696]
[1761235384671,10.03032149,191.44,191.36,2.82]
[1761235384871,10.03032149,191.44,191.38,2.82]
[1761235385070,7.3004,191.44,191.4,2.82]
[1761235385270,7.3004,191.44,191.41,4.80351825]
[1761235385471,7.3004,191.44,191.42,4.80351825]
[1761235385671,7.3004,191.44,191.43,4.80351825]
[1761235386274,2.72992149,191.48,191.43,7.62351825]
[1761235386487,2.72992149,191.48,191.32,12.49841589]
[1761235386488,2.6,191.48,191.44,7.62351825]
[1761235386778,2.6,191.47,191.45,4.80351825]
[1761235386976,2.6,191.47,191.46,4.80351825]
[1761235387274,2.6,191.47,191.37,4.83734754]
[1761235387573,2.6,191.47,191.38,12.46196854]
[1761235387769,2.6,191.47,191.39,4.804621]
[1761235387965,7.3002,191.45,191.4,7.624621]
[1761235388178,5.32992149,191.48,191.42,2.82]
[1761235388379,2.6,191.47,191.43,4.804621]
[1761235388678,2.6,191.47,191.44,4.804621]
[1761235388880,2.6,191.46,191.45,4.804621]
[1761235389075,2.6,191.46,191.38,7.65734754]
[1761235389277,2.6,191.46,191.39,4.80479368]
[1761235389573,2.6,191.46,191.4,4.80479368]
[1761235389775,2.6,191.46,191.41,4.80479368]
[1761235389974,2.6,191.45,191.42,4.80479368]
[1761235390175,2.6,191.45,191.43,4.80479368]
[1761235390373,2.6,191.45,191.44,4.80479368]
[1761235390773,4.7,191.46,191.44,4.80479368]
[1761235390974,4.7,191.46,191.45,4.80479368]
[1761235391179,7.3,191.46,191.45,4.80479368]
[1761235392878,7.2994,191.48,191.45,4.80479368]
[1761235393180,2.6,191.5,191.46,4.79566946]
[1761235393383,2.6,191.5,191.47,7.61566946]
[1761235393584,51.0984,191.52,191.48,4.79268076]
[1761235393777,2.6,191.51,191.47,2.82]
[1761235393977,2.6,191.51,191.48,4.79242469]
[1761235394177,2.6,191.51,191.47,2.82]
[1761235394377,2.6,191.51,191.48,4.7899923]
[1761235394580,2.6,191.51,191.47,2.82]
[1761235394780,2.6,191.51,191.48,4.7895208]
[1761235394982,43.8,191.52,191.49,4.7895208]
[1761235395189,43.8,191.52,191.48,2.82]
[1761235395477,43.8,191.52,191.49,4.78703254]
[1761235395683,43.8,191.52,191.51,2.82]
[1761235395880,43.8,191.52,191.51,4.78512895]
[1761235396081,2.6,191.52,191.51,4.78512895]
[1761235396679,2.6,191.57,191.51,4.78512895]
[1761235396882,2.6,191.57,191.47,2.82]
[1761235397082,2.6,191.57,191.48,7.60327699]
[1761235397282,2.6,191.57,191.49,4.78327699]
[1761235397484,2.6,191.53,191.5,4.78327699]
[1761235397791,2.6,191.53,191.45,2.82]
[1761235398084,2.6,191.53,191.47,2.82]
[1761235398295,2.6,191.53,191.48,7.60190775]
[1761235398484,2.6,191.53,191.49,4.78190775]
[1761235398789,2.6,191.53,191.5,4.78190775]
[1761235398987,2.6,191.53,191.48,2.82]
[1761235399184,2.6,191.53,191.49,4.77908019]
[1761235399383,2.6,191.53,191.5,4.77908019]
[1761235399689,2.6,191.53,191.48,2.82]
[1761235399889,2.6,191.53,191.49,4.77574125]
[1761235400078,2.6,191.53,191.5,4.77574125]
[1761235400283,2.6,191.53,191.48,2.82]
[1761235400479,7.2971,191.57,191.49,4.77341857]
[1761235400786,2.6,191.57,191.5,4.77341857]
[1761235400989,2.6,191.57,191.51,4.77341857]
[1761235401191,2.6,191.57,191.48,2.82]
[1761235401192,43.76,191.56,191.48,2.82]
[1761235401392,43.76,191.56,191.49,4.77121915]
[1761235401692,43.76,191.56,191.5,4.77121915]
[1761235401893,2.6,191.55,191.51,4.77121915]
[1761235402091,2.6,191.55,191.51,2.82]
[1761235402289,2.6,191.62,191.53,2.82]
[1761235402488,5.32992149,191.61,191.54,4.76536002]
[1761235402681,5.32992149,191.61,191.53,2.82]
[1761235402887,2.6,191.6,191.53,2.82]
[1761235403086,2.6,191.6,191.48,2.82]
[1761235403287,2.6,191.6,191.5,2.82]
[1761235403483,2.6,191.57,191.51,4.76652689]
[1761235403684,2.6,191.57,191.52,4.76652689]
[1761235403886,2.6,191.57,191.5,2.82]
[1761235404090,2.6,191.57,191.51,4.7647586]
[1761235404293,2.6,191.57,191.5,2.82]
[1761235404492,2.6,191.57,191.44,4.83734754]
[1761235404800,2.6,191.55,191.46,2.82]
[1761235405090,2.6,191.55,191.47,7.58266291]
[1761235405297,2.6,191.55,191.48,7.58266291]
[1761235405499,2.6,191.55,191.49,4.76266291]
[1761235405698,2.6,191.55,191.5,4.76266291]
[1761235405890,2.6,191.55,191.48,2.82]
[1761235406091,7.2977,191.55,191.49,4.76282494]
[1761235406286,7.2977,191.55,191.48,2.82]
[1761235406491,7.2977,191.55,191.49,4.7620683]
[1761235406687,2.8,191.54,191.46,4.6996]
[1761235407000,2.8,191.53,191.47,4.76239008]
[1761235407291,4.6982,191.53,191.48,4.76239008]
[1761235407491,2.8,191.52,191.45,2.79]
[1761235407697,2.8,191.52,191.46,4.76182218]
[1761235408003,2.8,191.52,191.45,2.79]
[1761235408201,4.6979,191.54,191.47,2.79]
[1761235408497,2.8,191.56,191.49,2.79]
[1761235409095,7.4973,191.56,191.49,2.79]
[1761235409290,2.8,191.56,191.49,2.79]
[1761235410704,2.8,191.56,191.5,2.77]
[1761235411798,9.24211579,191.56,191.5,2.77]
[1761235412006,2.71,191.55,191.5,2.77]
[1761235412205,1.74471579,191.54,191.5,2.77]
[1761235412506,4.45471579,191.54,191.5,2.77]
[1761235412708,1.74471579,191.54,191.47,2.77]
[1761235412895,1.74471579,191.52,191.47,2.77]
[1761235413099,1.74471579,191.52,191.45,1.74471579]
[1761235413100,2.71,191.51,191.45,1.74471579]
[1761235413301,2.71,191.51,191.46,4.74861468]
[1761235413606,2.71,191.51,191.44,2.77]
[1761235413809,2.71,191.51,191.45,4.74835312]
[1761235414104,6.44311579,191.52,191.44,2.77]
[1761235414105,4.6984,191.52,191.44,2.77]
[1761235414303,4.45471579,191.54,191.46,2.77]
[1761235414517,2.71,191.51,191.46,2.77]
[1761235415915,1.74471579,191.52,191.46,2.77]
[1761235416507,1.74471579,191.52,191.47,4.74998867]